fUSD/lending_fUSD_20260106
["ID","MTS","AMOUNT","RATE_DAILY","PERIOD"]
[400570234,1767727844676,-151.0,0.00031507,31]
[400570236,1767727844686,-151.0,0.00031507,31]
[400570238,1767727844695,-151.0,0.00031507,31]
[400570239,1767727844704,-151.0,0.00031507,31]
[400570241,1767727844714,-151.0,0.00031507,31]
[400570243,1767727844724,-151.0,0.00031507,31]
[400570245,1767727844733,-189.704472,0.00031507,31]
[400570247,1767727844743,-158.565545,0.00031507,31]
[400570249,1767727844754,-158.565545,0.00031507,31]
[400570251,1767727844764,-158.565545,0.00031507,31]
[400570252,1767727844773,-158.565545,0.00031507,31]
[400570254,1767727844783,-151.0,0.00031507,31]
[400570256,1767727844793,-158.565545,0.00031507,31]
[400570258,1767727844802,-151.0,0.00031507,31]
[400570260,1767727844811,-158.565545,0.00031507,31]
[400570262,1767727844821,-151.0,0.00031507,31]
[400570264,1767727844831,-158.565545,0.00031507,31]
[400570265,1767727844841,-158.565545,0.00031507,31]
[400570268,1767727844850,-158.565545,0.00031507,31]
[400570270,1767727844860,-151.0,0.00031507,31]
[400570272,1767727844872,-158.565545,0.00031507,31]
[400570274,1767727844881,-151.0,0.00031507,31]
[400570276,1767727844891,-158.565545,0.00031507,31]
[400570278,1767727844900,-178.435728,0.00031507,31]
[400570280,1767727844910,-158.565545,0.00031507,31]
[400570282,1767727844919,-1242.644525,0.00031507,31]
[400570284,1767727844929,-1242.644525,0.00031507,31]
[400570286,1767727844939,-1242.644525,0.00031507,31]
[400570288,1767727844949,-1242.644525,0.00031507,31]
[400570290,1767727844958,-1242.644525,0.00031507,31]
[400570292,1767727844968,-1242.644525,0.00031507,31]
[400570293,1767727844977,-1242.644525,0.00031507,31]
[400570295,1767727844986,-1242.644525,0.00031507,31]
[400570297,1767727844997,-1242.644525,0.00031507,31]
[400570299,1767727845007,-1242.644525,0.00031507,31]
[400570301,1767727845016,-1242.644525,0.00031507,31]
[400570302,1767727845026,-1242.644525,0.00031507,31]
[400570305,1767727845035,-151.0,0.00031507,31]
[400570307,1767727845044,-151.0,0.00031507,31]
[400570309,1767727845054,-151.0,0.00031507,31]
[400570311,1767727845064,-151.0,0.00031507,31]
[400570313,1767727845073,-151.0,0.00031507,31]
[400570314,1767727845082,-157.236016,0.00031507,31]
[400570315,1767727845091,-151.0,0.00031507,31]
[400570316,1767727845101,-158.523641,0.00031507,31]
[400570317,1767727845110,-175.863763,0.00031507,31]
[400570318,1767727845119,-175.863763,0.00031507,31]
[400570319,1767727845128,-175.863763,0.00031507,31]
[400570320,1767727845137,-175.863763,0.00031507,31]
[400570321,1767727845148,-175.863763,0.00031507,31]
[400570322,1767727845157,-175.863763,0.00031507,31]
[400570323,1767727845167,-175.863763,0.00031507,31]
[400570325,1767727845176,-175.863763,0.00031507,31]
[400570326,1767727845185,-175.863763,0.00031507,31]
[400570327,1767727845195,-175.863763,0.00031507,31]
[400570328,1767727845204,-175.863763,0.00031507,31]
[400570329,1767727845214,-175.863763,0.00031507,31]
[400570330,1767727845223,-151.0,0.00031507,31]
[400570331,1767727845232,-151.0,0.00031507,31]
[400570333,1767727845242,-151.0,0.00031507,31]
[400570335,1767727845251,-151.0,0.00031507,31]
[400570339,1767727845270,-151.0,0.00031507,31]
[400570341,1767727845282,-167.193054,0.00031507,31]
[400570343,1767727845291,-151.0,0.00031507,31]
[400570345,1767727845301,-151.0,0.00031507,31]
[400570347,1767727845310,-188.179526,0.00031507,31]
[400570349,1767727845320,-203.55208,0.00031507,31]
[400570351,1767727845329,-694.996962,0.00031507,31]
[400570353,1767727845339,-694.996962,0.00031507,31]
[400570356,1767727845348,-694.996962,0.00031507,31]
[400570358,1767727845359,-694.996962,0.00031507,31]
[400570360,1767727845369,-151.0,0.00031507,31]
[400570362,1767727845379,-694.996962,0.00031507,31]
[400570364,1767727845389,-151.0,0.00031507,31]
[400570366,1767727845400,-694.996962,0.00031507,31]
[400570368,1767727845410,-151.0,0.00031507,31]
[400570370,1767727845419,-694.996962,0.00031507,31]
[400570372,1767727845430,-151.0,0.00031507,31]
[400570374,1767727845440,-694.996962,0.00031507,31]
[400570376,1767727845449,-151.0,0.00031507,31]
[400570378,1767727845459,-151.0,0.00031507,31]
[400570380,1767727845468,-694.996962,0.00031507,31]
[400570382,1767727845479,-151.0,0.00031507,31]
[400570384,1767727845490,-151.0,0.00031507,31]
[400570386,1767727845500,-151.0,0.00031507,31]
[400570389,1767727845510,-694.996962,0.00031507,31]
[400570391,1767727845520,-151.0,0.00031507,31]
[400570393,1767727845530,-694.996962,0.00031507,31]
[400570395,1767727845539,-151.0,0.00031507,31]
[400570397,1767727845549,-251.72549,0.00031507,31]
[400570399,1767727845560,-694.996962,0.00031507,31]
[400570401,1767727845570,-151.0,0.00031507,31]
[400570402,1767727845580,-151.0,0.00031507,31]
[400570404,1767727845589,-1447.589795,0.00031507,31]
[400570406,1767727845599,-1447.589795,0.00031507,31]
[400570408,1767727845609,-1447.589795,0.00031507,31]
[400570410,1767727845618,-1447.589795,0.00031507,31]
[400570413,1767727845629,-1447.589795,0.00031507,31]
[400570415,1767727845642,-1447.589795,0.00031507,31]
[400570417,1767727845651,-1447.589795,0.00031507,31]
[400570419,1767727845663,-1447.589795,0.00031507,31]
[400570421,1767727845673,-1447.589795,0.00031507,31]
[400570423,1767727845682,-1447.589795,0.00031507,31]
[400570425,1767727845693,-1447.589795,0.00031507,31]
[400570428,1767727845703,-1447.589795,0.00031507,31]
[400570430,1767727845713,-151.0,0.00031507,31]
[400570432,1767727845723,-191.279642,0.00031507,31]
[400570434,1767727845734,-151.000032,0.00031507,31]
[400570436,1767727845744,-151.0,0.00031507,31]
[400570438,1767727845754,-151.0,0.00031507,31]
[400570440,1767727845764,-171.417226,0.00031507,31]
[400570442,1767727845773,-179.509805,0.00031507,31]
[400570444,1767727845783,-179.509805,0.00031507,31]
[400570447,1767727845793,-179.509805,0.00031507,31]
[400570449,1767727845803,-179.509805,0.00031507,31]
[400570451,1767727845813,-179.509805,0.00031507,31]
[400570453,1767727845823,-179.509805,0.00031507,31]
[400570455,1767727845832,-584.770076,0.00031507,31]
[400570457,1767727845842,-179.509805,0.00031507,31]
[400570459,1767727845852,-179.509805,0.00031507,31]
[400570461,1767727845862,-584.770076,0.00031507,31]
[400570463,1767727845871,-179.509805,0.00031507,31]
[400570465,1767727845882,-584.770076,0.00031507,31]
[400570467,1767727845893,-179.509805,0.00031507,31]
[400570469,1767727845903,-179.509805,0.00031507,31]
[400570471,1767727845913,-179.509805,0.00031507,31]
[400570473,1767727845923,-584.770076,0.00031507,31]
[400570475,1767727845933,-584.770076,0.00031507,31]
[400570477,1767727845942,-584.770076,0.00031507,31]
[400570479,1767727845952,-584.770076,0.00031507,31]
[400570481,1767727845962,-584.770076,0.00031507,31]
[400570483,1767727845972,-584.770076,0.00031507,31]
[400570485,1767727845982,-584.770076,0.00031507,31]
[400570487,1767727845992,-584.770076,0.00031507,31]
[400570489,1767727846001,-584.770076,0.00031507,31]
[400570491,1767727846011,-185.189839,0.00031507,31]
[400570494,1767727846025,-151.0,0.00031507,31]
[400570496,1767727846035,-173.339973,0.00031507,31]
[400570498,1767727846045,-187.952465,0.00031507,31]
[400570500,1767727846054,-151.0,0.00031507,31]
[400570502,1767727846064,-151.0,0.00031507,31]
[400570504,1767727846074,-151.0,0.00031507,31]
[400570506,1767727846084,-151.0,0.00031507,31]
[400570508,1767727846093,-151.0,0.00031507,31]
[400570510,1767727846103,-151.0,0.00031507,31]
[400570512,1767727846113,-151.0,0.00031507,31]
[400570514,1767727846123,-167.374059,0.00031507,31]
[400570516,1767727846132,-151.0,0.00031507,10]
[400570518,1767727846142,-154.66916,0.00031507,10]
[400570520,1767727846151,-267.915069,0.00031507,31]
[400570522,1767727846161,-158.930238,0.00031507,31]
[400570524,1767727846171,-158.930238,0.00031507,31]
[400570526,1767727846180,-158.930238,0.00031507,31]
[400570528,1767727846190,-151.0,0.00031507,31]
[400570530,1767727846200,-151.0,0.00031507,31]
[400570533,1767727846210,-206.523687,0.00031507,31]
[400570535,1767727846219,-151.0,0.00031507,31]
[400570537,1767727846229,-151.0,0.00031507,31]
[400570539,1767727846238,-151.0,0.00031507,31]
[400570541,1767727846247,-151.0,0.00031507,31]
[400570543,1767727846256,-151.0,0.00031507,31]
[400570545,1767727846266,-151.0,0.00031507,31]
[400570547,1767727846275,-158.903179,0.00031507,31]
[400570549,1767727846284,-158.903179,0.00031507,31]
[400570551,1767727846294,-158.903179,0.00031507,31]
[400570553,1767727846303,-158.903179,0.00031507,31]
[400570555,1767727846313,-212.200798,0.00031507,31]
[400570557,1767727846323,-212.200798,0.00031507,31]
[400570559,1767727846332,-212.200798,0.00031507,31]
[400570561,1767727846342,-212.200798,0.00031507,31]
[400570563,1767727846351,-179.509805,0.00031507,31]
[400570565,1767727846361,-179.509805,0.00031507,31]
[400570567,1767727846370,-464.586954,0.00031507,2]
[400570569,1767727846379,-179.509805,0.00031507,31]
[400570571,1767727846388,-584.770076,0.00031507,31]
[400570573,1767727846398,-464.586954,0.00031507,2]
[400570575,1767727846407,-179.509805,0.00031507,31]
[400570577,1767727846417,-464.586954,0.00031507,2]
[400570579,1767727846427,-584.770076,0.00031507,31]
[400570581,1767727846438,-584.770076,0.00031507,31]
[400570583,1767727846447,-464.586954,0.00031507,2]
[400570585,1767727846457,-584.770076,0.00031507,31]
[400570587,1767727846467,-166.649851,0.00031507,31]
[400570589,1767727846479,-166.649851,0.00031507,31]
[400570592,1767727846491,-166.649851,0.00031507,31]
[400570594,1767727846500,-166.649851,0.00031507,31]
[400570596,1767727846510,-151.0,0.00031507,31]
[400570598,1767727846520,-413.415595,0.00031507,31]
[400570600,1767727846530,-413.415595,0.00031507,31]
[400570602,1767727846540,-413.415595,0.00031507,31]
[400570603,1767727846551,-413.415591,0.00031507,31]
[400570605,1767727846561,-158.930229,0.00031507,31]
[400570608,1767727846571,-220.541688,0.00031507,28]
[400570610,1767727846581,-220.541688,0.00031507,28]
[400570612,1767727846591,-220.541688,0.00031507,28]
[400570614,1767727846602,-220.541684,0.00031507,28]
[400570616,1767727846611,-501.0,0.00031547,3]
[400570618,1767727846621,-4006.44,0.000316,7]
[400570621,1767727846630,-888.16,0.000316,14]
[400570647,1767727846862,-158.0,0.00031644,14]
[400570649,1767727846873,-168.0,0.00031644,14]
[400570651,1767727846883,-3466.0,0.00031665,2]
[400570653,1767727846892,-2435.0,0.00031665,2]
[400570655,1767727846902,-614.0,0.00031665,2]
[400570657,1767727846912,-263.28,0.00031723,30]
[400570659,1767727846922,-349.83087352,0.0003187,5]
[400570661,1767727846932,-500.0,0.0003187,5]
[400570663,1767727846942,-803.7588,0.0003287,2]
[400570665,1767727846951,-343.53,0.00032877,2]
[400570667,1767727846960,-151.0,0.00032877,31]
[400570669,1767727846969,-151.0,0.00032877,31]
[400570671,1767727846979,-151.0,0.00032877,31]
[400570673,1767727846988,-151.0,0.00032877,31]
[400570675,1767727846997,-151.0,0.00032877,31]
[400570677,1767727847006,-151.0,0.00032877,31]
[400570679,1767727847015,-151.0,0.00032877,31]
[400570681,1767727847025,-151.0,0.00032877,31]
[400570683,1767727847034,-151.0,0.00032877,31]
[400570684,1767727847043,-151.0,0.00032877,31]
[400570686,1767727847053,-151.0,0.00032877,31]
[400570688,1767727847063,-151.0,0.00032877,31]
[400570691,1767727847073,-151.0,0.00032877,31]
[400570693,1767727847083,-151.0,0.00032877,31]
[400570695,1767727847095,-224.27226,0.00032877,31]
[400570697,1767727847105,-151.0,0.00032877,31]
[400570699,1767727847115,-151.0,0.00032877,31]
[400570701,1767727847124,-151.0,0.00032877,31]
[400570703,1767727847134,-151.0,0.00032877,31]
[400570705,1767727847144,-151.0,0.00032877,31]
[400570707,1767727847154,-151.0,0.00032877,31]
[400570709,1767727847164,-151.0,0.00032877,31]
[400570711,1767727847174,-166.67898,0.00032877,31]
[400570713,1767727847183,-237.12745582,0.00032877,120]
[400570715,1767727847193,-501.0483089,0.00032877,5]
[400570717,1767727847203,-151.0,0.00032877,31]
[400570719,1767727847212,-151.0,0.00032877,31]
[400570721,1767727847221,-188.540171,0.00032877,31]
[400570723,1767727847231,-576.132778,0.00032877,31]
[400570725,1767727847240,-576.132778,0.00032877,31]
[400570727,1767727847249,-576.132778,0.00032877,31]
[400570729,1767727847258,-576.132778,0.00032877,31]
[400570731,1767727847267,-191.195533,0.00032877,31]
[400570733,1767727847276,-191.195533,0.00032877,31]
[400570735,1767727847285,-191.195533,0.00032877,31]
[400570737,1767727847294,-191.195533,0.00032877,31]
[400570739,1767727847303,-235.896825,0.00032877,31]
[400570741,1767727847312,-151.0,0.00032877,31]
[400570743,1767727847321,-151.0,0.00032877,31]
[400570745,1767727847332,-151.0,0.00032877,31]
[400570747,1767727847341,-151.0,0.00032877,31]
[400570749,1767727847350,-151.0,0.00032877,31]
[400570751,1767727847359,-151.0,0.00032877,31]
[400570753,1767727847368,-158.565545,0.00032877,31]
[400570755,1767727847377,-158.565545,0.00032877,31]
[400570757,1767727847386,-190.408048,0.00032877,31]
[400570759,1767727847395,-158.565545,0.00032877,31]
[400570761,1767727847404,-158.565545,0.00032877,31]
[400570763,1767727847413,-1242.644525,0.00032877,31]
[400570765,1767727847422,-1242.644525,0.00032877,31]
[400570767,1767727847432,-1242.644525,0.00032877,31]
[400570769,1767727847441,-1242.644525,0.00032877,31]
[400570771,1767727847451,-175.863763,0.00032877,31]
[400570773,1767727847460,-175.863763,0.00032877,31]
[400570775,1767727847468,-175.863763,0.00032877,31]
[400570777,1767727847481,-175.863763,0.00032877,31]
[400570779,1767727847490,-351.11,0.000329,14]
[400570781,1767727847499,-403.75,0.000329,14]
[400570783,1767727847508,-1378.77,0.000329,2]
[400570785,1767727847517,-500.0,0.00032994,120]
[400570787,1767727847527,-250.0,0.00033,3]
[400570789,1767727847536,-554.672824,0.00033,14]
[400570791,1767727847545,-2617.0,0.00033036,3]
[400570793,1767727847558,-209.97213037,0.00033161,2]
[400570795,1767727847567,-501.0,0.00033218,5]
[400570797,1767727847576,-158.0,0.00033226,30]
[400570799,1767727847586,-4006.44,0.000334,14]
[400570801,1767727847596,-68324.11,0.000334,2]
[400570803,1767727847605,-168.51,0.00033418,2]
[400570805,1767727847614,-150.0,0.00033559,2]
[400570807,1767727847623,-150.0,0.00033559,2]
[400570809,1767727847632,-1378.77,0.000336,2]
[400570811,1767727847641,-150.0,0.00033788,2]
[400570813,1767727847651,-4006.44,0.000338,14]
[400570815,1767727847660,-150.0,0.0003384,2]
[400570817,1767727847669,-150.0,0.0003384,2]
[400570819,1767727847679,-150.0,0.0003384,2]
[400570820,1767727847688,-150.0,0.0003384,2]
[400570823,1767727847698,-150.0,0.0003384,2]
[400570824,1767727847708,-150.0,0.0003384,2]
[400570826,1767727847717,-150.0,0.0003384,2]
[400570829,1767727847726,-150.0,0.0003384,2]
[400570830,1767727847735,-150.0,0.0003384,2]
[400570832,1767727847744,-219.35995196,0.00033939,60]
[400570834,1767727847754,-500.0,0.00033999,120]
[400570836,1767727847763,-772.98909842,0.00034,7]
[400570838,1767727847772,-400.96412105,0.00034116,2]
[400570840,1767727847781,-2664.48,0.000343,30]
[400570842,1767727847791,-1266.0,0.00034336,2]
[400570845,1767727847802,-1200.0,0.00034336,2]
[400570847,1767727847812,-911.0,0.00034336,2]
[400570849,1767727847821,-278.17483,0.00034336,31]
[400570851,1767727847830,-151.0,0.00034336,31]
[400570853,1767727847839,-151.0,0.00034336,31]
[400570854,1767727847848,-151.0,0.00034336,31]
[400570857,1767727847858,-190.275926,0.00034336,31]
[400570859,1767727847867,-694.996962,0.00034336,31]
[400570861,1767727847879,-694.996962,0.00034336,31]
[400570863,1767727847888,-151.0,0.00034336,31]
[400570865,1767727847898,-151.0,0.00034336,31]
[400570867,1767727847908,-694.996962,0.00034336,31]
[400570869,1767727847918,-151.0,0.00034336,31]
[400570871,1767727847927,-151.0,0.00034336,31]
[400570873,1767727847937,-151.0,0.00034336,31]
[400570875,1767727847946,-694.996962,0.00034336,31]
[400570877,1767727847955,-177.957707,0.00034336,31]
[400570879,1767727847964,-151.0,0.00034336,31]
[400570881,1767727847974,-151.0,0.00034336,31]
[400570883,1767727847983,-1447.589795,0.00034336,31]
[400570885,1767727847992,-1447.589795,0.00034336,31]
[400570887,1767727848002,-1447.589795,0.00034336,31]
[400570889,1767727848012,-1447.589795,0.00034336,31]
[400570891,1767727848021,-227.7122,0.00034336,31]
[400570893,1767727848030,-227.7122,0.00034336,31]
[400570895,1767727848039,-227.7122,0.00034336,31]
[400570897,1767727848048,-227.7122,0.00034336,31]
[400570898,1767727848057,-179.509805,0.00034336,31]
[400570899,1767727848067,-179.509805,0.00034336,31]
[400570900,1767727848076,-464.586954,0.00034336,2]
[400570901,1767727848085,-179.509805,0.00034336,31]
[400570902,1767727848095,-464.586954,0.00034336,2]
[400570903,1767727848104,-584.770076,0.00034336,31]
[400570904,1767727848113,-179.509805,0.00034336,31]
[400570905,1767727848122,-464.586954,0.00034336,2]
[400570906,1767727848131,-584.770076,0.00034336,31]
[400570907,1767727848142,-584.770076,0.00034336,31]
[400570908,1767727848151,-464.586956,0.00034336,2]
[400570909,1767727848161,-584.770076,0.00034336,31]
[400570910,1767727848171,-151.0,0.00034336,31]
[400570911,1767727848180,-151.0,0.00034336,31]
[400570912,1767727848189,-151.0,0.00034336,31]
[400570913,1767727848199,-166.649851,0.00034336,31]
[400570914,1767727848209,-166.649851,0.00034336,31]
[400570915,1767727848218,-166.649851,0.00034336,31]
[400570916,1767727848228,-166.649854,0.00034336,31]
[400570917,1767727848239,-1378.77,0.000344,2]
[400570918,1767727848250,-5000.0,0.000345,14]
[400570919,1767727848260,-3466.0,0.00034665,2]
[400570920,1767727848270,-2435.0,0.00034665,2]
[400570922,1767727848279,-613.0,0.00034665,2]
[400570924,1767727848288,-501.0,0.00034889,7]
[400570925,1767727848298,-8376.33463265,0.00035,30]
[400570926,1767727848307,-8934.93308171,0.00035,30]
[400570927,1767727848316,-178.13204382,0.00035,120]
[400570928,1767727848326,-6274.876163,0.00035,7]
[400570929,1767727848336,-151.0,0.00035,31]
[400570930,1767727848345,-188.531788,0.00035,31]
[400570931,1767727848355,-151.0,0.00035,31]
[400570932,1767727848365,-151.0,0.00035,31]
[400570933,1767727848374,-151.0,0.00035,31]
[400570934,1767727848383,-151.0,0.00035,31]
[400570935,1767727848392,-224.716118,0.00035,31]
[400570936,1767727848402,-224.716118,0.00035,31]
[400570937,1767727848411,-158.541394,0.00035,31]
[400570938,1767727848422,-151.0,0.00035,31]
[400570939,1767727848431,-224.716118,0.00035,31]
[400570940,1767727848441,-224.716118,0.00035,31]
[400570942,1767727848452,-151.0,0.00035,31]
[400570944,1767727848462,-151.0,0.00035,31]
[400570946,1767727848471,-151.0,0.00035,31]
[400570948,1767727848484,-155.710092,0.00035,31]
[400570950,1767727848493,-256.18893,0.00035,31]
[400570952,1767727848503,-155.710092,0.00035,31]
[400570954,1767727848512,-155.710092,0.00035,31]
[400570956,1767727848522,-155.710092,0.00035,31]
[400570958,1767727848531,-484.128599,0.00035,31]
[400570960,1767727848541,-484.128599,0.00035,31]
[400570962,1767727848550,-484.128599,0.00035,31]
[400570964,1767727848560,-151.0,0.00035,31]
[400570966,1767727848569,-484.128599,0.00035,31]
[400570968,1767727848579,-68324.11,0.00035,2]
[400570970,1767727848589,-1000.0,0.00035,7]
[400570971,1767727848598,-2617.0,0.00035117,4]
[400570972,1767727848608,-2500.0,0.000353,14]
[400570973,1767727848618,-151.0,0.000353,7]
[400570974,1767727848627,-151.0,0.000353,7]
[400570975,1767727848637,-663.9,0.00035616,39]
[400570976,1767727848646,-217.01825238,0.00035616,65]
[400570977,1767727848664,-590.4,0.00035616,34]
[400570978,1767727848675,-486.36474312,0.00035616,104]
[400570979,1767727848684,-498.9,0.00035616,17]
[400570980,1767727848694,-461.1,0.00035616,31]
[400570981,1767727848703,-681.6,0.00035616,27]
[400570982,1767727848712,-581.4,0.00035616,42]
[400570983,1767727848722,-575.7,0.00035616,30]
[400570984,1767727848732,-630.0,0.00035616,21]
[400570985,1767727848742,-749.1,0.00035616,16]
[400570986,1767727848752,-608.1,0.00035616,40]
[400570987,1767727848761,-536.4,0.00035616,41]
[400570988,1767727848771,-475.5,0.00035616,45]
[400570989,1767727848780,-656.1,0.00035616,50]
[400570990,1767727848790,-462.3,0.00035616,48]
[400570991,1767727848799,-531.9,0.00035616,27]
[400570992,1767727848810,-475.5,0.00035616,41]
[400570993,1767727848819,-712.5,0.00035616,26]
[400570994,1767727848829,-575.1,0.00035616,19]
[400570995,1767727848839,-592.8,0.00035616,32]
[400570996,1767727848848,-261.10675148,0.00035616,120]
[400570997,1767727848857,-174.57418581,0.00035616,26]
[400570998,1767727848866,-300.0,0.00035616,5]
[400570999,1767727848876,-151.0,0.00035616,31]
[400571000,1767727848885,-151.0,0.00035616,31]
[400571001,1767727848895,-151.0,0.00035616,31]
[400571002,1767727848904,-151.0,0.00035616,31]
[400571003,1767727848914,-1378.77,0.000357,2]
[400571004,1767727848923,-661.18,0.00035753,2]
[400571005,1767727848933,-482.51,0.00035753,2]
[400571006,1767727848943,-661.18,0.00035753,2]
[400571007,1767727848952,-482.51,0.00035753,2]
[400571008,1767727848962,-480.98,0.00035753,2]
[400571011,1767727848972,-661.18,0.00035753,2]
[400571013,1767727848981,-661.18,0.00035753,2]
[400571015,1767727848991,-661.18,0.00035753,2]
[400571017,1767727849001,-775.96,0.00035753,2]
[400571019,1767727849010,-661.18,0.00035753,2]
[400571021,1767727849019,-661.18,0.00035753,2]
[400571023,1767727849028,-661.18,0.00035753,2]
[400571025,1767727849037,-661.18,0.00035753,2]
[400571027,1767727849047,-661.18,0.00035753,2]
[400571029,1767727849056,-661.18,0.00035753,2]
[400571031,1767727849066,-661.18,0.00035753,2]
[400571033,1767727849075,-661.18,0.00035753,2]
[400571035,1767727849083,-4006.44,0.000358,14]
[400571037,1767727849092,-304.13144408,0.0003597,3]
[400571039,1767727849102,-3113.96,0.00036,120]
[400571041,1767727849111,-2021.0,0.00036,30]
[400571043,1767727849120,-263.28,0.00036049,30]
[400571045,1767727849130,-600.0,0.00036438,5]
[400571047,1767727849139,-2301.0,0.000365,30]
[400571049,1767727849148,-158.0,0.00036549,30]
[400571051,1767727849157,-150.0,0.00036559,2]
[400571053,1767727849167,-150.0,0.00036559,2]
[400571055,1767727849176,-501.0,0.0003656,9]
[400571057,1767727849185,-150.0,0.0003684,2]
[400571059,1767727849194,-150.0,0.0003684,2]
[400571061,1767727849203,-150.0,0.0003684,2]
[400571063,1767727849212,-150.0,0.0003684,2]
[400571065,1767727849221,-171.08,0.00036849,2]
[400571067,1767727849229,-619.21,0.00036849,2]
[400571069,1767727849238,-351.06,0.00036849,2]
[400571071,1767727849248,-943.26,0.00036849,2]
[400571073,1767727849257,-388.59,0.00036849,2]
[400571075,1767727849267,-178.8,0.00036849,2]
[400571077,1767727849276,-565.35,0.00036849,2]
[400571079,1767727849285,-171.25,0.00036849,2]
[400571081,1767727849294,-466.43,0.00036849,2]
[400571083,1767727849304,-150.0,0.00036849,2]
[400571085,1767727849313,-178.99,0.00036849,2]
[400571087,1767727849322,-171.25,0.00036849,2]
[400571089,1767727849331,-466.43,0.00036849,2]
[400571091,1767727849341,-150.0,0.00036849,2]
[400571112,1767727849555,-466.43,0.00036849,2]
[400571114,1767727849565,-178.99,0.00036849,2]
[400571116,1767727849574,-171.25,0.00036849,2]
[400571118,1767727849583,-150.0,0.00036849,2]
[400571120,1767727849593,-178.99,0.00036849,2]
[400571122,1767727849602,-150.0,0.00036849,2]
[400571123,1767727849612,-171.25,0.00036849,2]
[400571124,1767727849622,-466.43,0.00036849,2]
[400571125,1767727849631,-150.0,0.00036849,2]
[400571126,1767727849641,-171.25,0.00036849,2]
[400571127,1767727849651,-178.99,0.00036849,2]
[400571128,1767727849660,-466.43,0.00036849,2]
[400571129,1767727849669,-466.43,0.00036849,2]
[400571130,1767727849679,-171.25,0.00036849,2]
[400571131,1767727849689,-178.44,0.00036849,2]
[400571132,1767727849698,-153.52,0.00036849,2]
[400571133,1767727849707,-171.25,0.00036849,2]
[400571134,1767727849717,-150.0,0.00036849,2]
[400571135,1767727849727,-466.43,0.00036849,2]
[400571136,1767727849736,-171.25,0.00036849,2]
[400571137,1767727849745,-150.0,0.00036849,2]
[400571138,1767727849755,-459.13,0.00036849,2]
[400571139,1767727849764,-171.25,0.00036849,2]
[400571140,1767727849773,-171.25,0.00036849,2]
[400571141,1767727849783,-150.0,0.00036849,2]
[400571142,1767727849792,-171.25,0.00036849,2]
[400571143,1767727849801,-171.25,0.00036849,2]
[400571144,1767727849810,-161.54,0.00036999,2]
[400571145,1767727849820,-73152.9651395,0.00037,7]
[400571146,1767727849829,-150.0,0.00037,2]
[400571147,1767727849839,-158.903179,0.00037,31]
[400571148,1767727849847,-158.903179,0.00037,31]
[400571149,1767727849856,-158.903179,0.00037,31]
[400571150,1767727849865,-158.903179,0.00037,31]
[400571151,1767727849875,-212.200798,0.00037,31]
[400571152,1767727849884,-212.200798,0.00037,31]
[400571153,1767727849893,-212.200798,0.00037,31]
[400571154,1767727849902,-212.200798,0.00037,31]
[400571155,1767727849912,-151.0,0.00037,31]
[400571156,1767727849921,-151.0,0.00037,31]